lending/lending_fUSD_20241120
["ID","MTS","AMOUNT","RATE_DAILY","PERIOD"]
[342785416,1732140750954,-500.0,0.00056438,120]
[342785417,1732140750963,-500.0,0.00056438,120]
[342785418,1732140750972,-859.5,0.00056438,120]
[342785419,1732140750981,-500.0,0.00056438,120]
[342785420,1732140750991,-3662.75,0.00056438,120]
[342785421,1732140751000,-922.45,0.00056438,120]
[342785422,1732140751010,-231.238367,0.00056438,120]
[342785423,1732140751019,-231.238367,0.00056438,120]
[342785424,1732140751029,-500.0,0.00056438,120]
[342785425,1732140751039,-500.0,0.00056438,120]
[342785426,1732140751048,-500.0,0.00056438,120]
[342785427,1732140751058,-1994.35,0.00056438,120]
[342785428,1732140751068,-231.238367,0.00056438,120]
[342785429,1732140751078,-500.0,0.00056438,120]
[342785430,1732140751088,-231.238367,0.00056438,120]
[342785431,1732140751098,-231.238367,0.00056438,120]
[342785432,1732140751107,-500.0,0.00056438,120]
[342785433,1732140751117,-231.238367,0.00056438,120]
[342785434,1732140751126,-231.238367,0.00056438,120]
[342785435,1732140751135,-1363.9,0.00056438,120]
[342785436,1732140751145,-1162.72,0.00056438,120]
[342785437,1732140751158,-66449.02,0.00056438,5]
[342785438,1732140751167,-231.238367,0.00056438,120]
[342785439,1732140751177,-1114.06,0.00056438,120]
[342785440,1732140751187,-1815.23,0.00056438,120]
[342785441,1732140751198,-515.08223692,0.00056438,120]
[342785442,1732140751208,-231.238367,0.00056438,120]
[342785443,1732140751218,-231.238367,0.00056438,120]
[342785444,1732140751229,-1159.58,0.00056438,120]
[342785445,1732140751238,-231.238367,0.00056438,120]
[342785446,1732140751247,-231.238369,0.00056438,120]
[342785447,1732140751257,-500.0,0.00056438,120]
[342785448,1732140751266,-500.0,0.00056438,120]
[342785449,1732140751276,-500.0,0.00056438,120]
[342785450,1732140751285,-2826.01,0.00056438,120]
[342785451,1732140751295,-6111.41,0.00056438,120]
[342785452,1732140751304,-500.0,0.00056438,120]
[342785453,1732140751313,-500.0,0.00056438,120]
[342785454,1732140751323,-163.746603,0.00056438,120]
[342785455,1732140751333,-163.746603,0.00056438,120]
[342785456,1732140751343,-581.11247763,0.00056438,120]
[342785457,1732140751352,-163.746603,0.00056438,120]
[342785458,1732140751362,-163.746603,0.00056438,120]
[342785459,1732140751371,-1031.65,0.00056438,120]
[342785460,1732140751381,-163.746603,0.00056438,120]
[342785461,1732140751391,-163.746603,0.00056438,120]
[342785462,1732140751401,-151.0,0.00056438,30]
[342785463,1732140751410,-151.0,0.00056438,120]
[342785464,1732140751420,-151.0,0.00056438,120]
[342785465,1732140751430,-151.0,0.00056438,120]
[342785466,1732140751441,-151.0,0.00056438,120]
[342785467,1732140751450,-163.746603,0.00056438,120]
[342785468,1732140751460,-151.0,0.00056438,120]
[342785469,1732140751470,-163.746603,0.00056438,120]
[342785470,1732140751479,-151.0,0.00056438,120]
[342785471,1732140751489,-532.59,0.00056438,120]
[342785472,1732140751498,-163.746603,0.00056438,120]
[342785473,1732140751507,-163.746603,0.00056438,120]
[342785474,1732140751517,-754.16,0.00056438,120]
[342785475,1732140751527,-163.746603,0.00056438,120]
[342785476,1732140751536,-553.58,0.00056438,120]
[342785477,1732140751545,-500.0,0.00056438,120]
[342785478,1732140751555,-500.0,0.00056438,120]
[342785479,1732140751565,-163.746597,0.00056438,120]
[342785480,1732140751574,-162.8267464,0.00056438,120]
[342785481,1732140751584,-201.086026,0.00056438,120]
[342785482,1732140751594,-3918.3,0.00056438,120]
[342785483,1732140751603,-500.0,0.00056438,120]
[342785484,1732140751613,-151.0,0.00056438,30]
[342785485,1732140751622,-151.0,0.00056438,30]
[342785486,1732140751632,-151.0,0.00056438,30]
[342785487,1732140751642,-151.0,0.00056438,30]
[342785488,1732140751651,-687.41,0.00056438,120]
[342785489,1732140751661,-151.0,0.00056438,30]
[342785490,1732140751670,-2233.29,0.00056438,120]
[342785491,1732140751679,-2901.67,0.00056438,120]
[342785492,1732140751690,-500.0,0.00056438,120]
[342785493,1732140751699,-1693.94,0.00056438,120]
[342785494,1732140751708,-1140.89,0.00056438,120]
[342785495,1732140751718,-743.27,0.00056438,120]
[342785496,1732140751727,-884.65,0.00056438,120]
[342785497,1732140751736,-4798.42,0.00056438,120]
[342785498,1732140751746,-500.0,0.00056438,120]
[342785499,1732140751755,-589.18,0.00056438,120]
[342785500,1732140751764,-1609.97,0.00056438,120]
[342785501,1732140751773,-500.0,0.00056438,120]
[342785502,1732140751782,-500.0,0.00056438,120]
[342785503,1732140751791,-548.16,0.00056438,120]
[342785504,1732140751801,-4873.91,0.00056438,120]
[342785505,1732140751810,-1086.88,0.00056438,120]
[342785506,1732140751820,-500.0,0.00056438,120]
[342785507,1732140751829,-1158.88,0.00056438,120]
[342785508,1732140752039,-7009.95,0.00056438,120]
[342785509,1732140752074,-725.57,0.00056438,120]
[342785510,1732140752084,-842.19,0.00056438,120]
[342785511,1732140752093,-500.0,0.00056438,120]
[342785512,1732140752103,-151.0,0.00056438,120]
[342785513,1732140752112,-151.0,0.00056438,120]
[342785514,1732140752121,-151.0,0.00056438,120]
[342785515,1732140752131,-151.0,0.00056438,120]
[342785516,1732140752140,-151.0,0.00056438,120]
[342785517,1732140752153,-151.0,0.00056438,120]
[342785518,1732140752162,-2713.37,0.00056438,120]
[342785519,1732140752171,-500.0,0.00056438,120]
[342785520,1732140752180,-2674.97,0.00056438,120]
[342785521,1732140752191,-1095.19,0.00056438,120]
[342785522,1732140752200,-500.0,0.00056438,120]
[342785523,1732140752209,-160.406428,0.00056438,120]
[342785524,1732140752220,-3162.29,0.00056438,120]
[342785525,1732140752229,-500.0,0.00056438,120]
[342785526,1732140752240,-500.0,0.00056438,120]
[342785527,1732140752250,-370.15,0.00056438,120]
[342785528,1732140752261,-5192.12,0.00056438,120]
[342785529,1732140752271,-6968.45,0.00056438,60]
[342785530,1732140752283,-500.0,0.00056438,120]
[342785531,1732140752293,-500.0,0.00056438,120]
[342785532,1732140752303,-500.0,0.00056438,120]
[342785533,1732140752312,-788.84,0.00056438,120]
[342785534,1732140752322,-500.0,0.00056438,120]
[342785535,1732140752331,-801.02,0.00056438,120]
[342785536,1732140752340,-1135.51,0.00056438,120]
[342785537,1732140752350,-565.84,0.00056438,120]
[342785538,1732140752359,-500.0,0.00056438,120]
[342785539,1732140752368,-736.59,0.00056438,120]
[342785540,1732140752379,-778.41,0.00056438,120]
[342785541,1732140752388,-2123.81,0.00056438,120]
[342785542,1732140752398,-1176.11,0.00056438,120]
[342785543,1732140752409,-500.0,0.00056438,120]
[342785544,1732140752419,-151.0,0.00056438,120]
[342785545,1732140752429,-500.0,0.00056438,120]
[342785546,1732140752439,-151.0,0.00056438,120]
[342785547,1732140752449,-6444.84,0.00056438,120]
[342785548,1732140752458,-840.5,0.00056438,120]
[342785549,1732140752468,-1149.75,0.00056438,120]
[342785550,1732140752478,-538.19,0.00056438,120]
[342785551,1732140752487,-1918.75,0.00056438,120]
[342785552,1732140752497,-527.39,0.00056438,120]
[342785553,1732140752507,-500.0,0.00056438,120]
[342785554,1732140752517,-846.33,0.00056438,120]
[342785555,1732140752527,-1368.4,0.00056438,120]
[342785556,1732140752536,-1437.44,0.00056438,120]
[342785557,1732140752546,-655.97,0.00056438,120]
[342785558,1732140752555,-613.35,0.00056438,120]
[342785559,1732140752564,-1217.61,0.00056438,120]
[342785560,1732140752574,-7358.45,0.00056438,120]
[342785561,1732140752583,-1149.18,0.00056438,120]
[342785562,1732140752593,-924.66,0.00056438,120]
[342785563,1732140752602,-500.0,0.00056438,120]
[342785564,1732140752612,-1763.901637,0.00056438,120]
[342785565,1732140752622,-1763.901637,0.00056438,120]
[342785566,1732140752632,-1763.901637,0.00056438,120]
[342785567,1732140752642,-1147.11,0.00056438,120]
[342785568,1732140752653,-1763.901637,0.00056438,120]
[342785569,1732140752662,-1763.901637,0.00056438,120]
[342785570,1732140752673,-1763.901637,0.00056438,120]
[342785571,1732140752683,-500.0,0.00056438,120]
[342785572,1732140752694,-1974.94,0.00056438,120]
[342785573,1732140752704,-17457.35,0.00056438,120]
[342785574,1732140752716,-13034.59,0.00056438,120]
[342785575,1732140752725,-2237.64,0.00056438,120]
[342785576,1732140752736,-1763.901637,0.00056438,120]
[342785577,1732140752745,-500.0,0.00056438,120]
[342785578,1732140752755,-2737.65,0.00056438,120]
[342785579,1732140752766,-1763.901637,0.00056438,120]
[342785580,1732140752776,-1763.901637,0.00056438,120]
[342785581,1732140752788,-551.05,0.00056438,120]
[342785582,1732140752797,-1763.901637,0.00056438,120]
[342785583,1732140752809,-1763.901637,0.00056438,120]
[342785584,1732140752819,-1763.90164,0.00056438,120]
[342785585,1732140752830,-2479.1,0.00056438,120]
[342785586,1732140752842,-500.0,0.00056438,120]
[342785587,1732140752852,-500.0,0.00056438,120]
[342785588,1732140752862,-3077.78,0.00056438,120]
[342785589,1732140752872,-151.0,0.00056438,120]
[342785590,1732140752882,-500.0,0.00056438,120]
[342785591,1732140752892,-151.0,0.00056438,120]
[342785592,1732140752902,-4393.1,0.00056438,120]
[342785593,1732140752912,-151.0,0.00056438,120]
[342785594,1732140752921,-151.0,0.00056438,120]
[342785595,1732140752931,-535.35,0.00056438,120]
[342785596,1732140752943,-151.0,0.00056438,120]
[342785597,1732140752953,-656.88,0.00056438,120]
[342785598,1732140752962,-151.0,0.00056438,120]
[342785599,1732140752972,-500.0,0.00056438,120]
[342785600,1732140752981,-500.0,0.00056438,120]
[342785601,1732140752990,-1967.61,0.00056438,120]
[342785602,1732140753001,-1550.26,0.00056438,120]
[342785603,1732140753011,-500.0,0.00056438,120]
[342785604,1732140753021,-725.78,0.00056438,120]
[342785605,1732140753030,-996.23,0.00056438,120]
[342785606,1732140753040,-5411.3,0.00056438,120]
[342785607,1732140753049,-500.0,0.00056438,120]
[342785608,1732140753059,-500.0,0.00056438,120]
[342785609,1732140753069,-559.06,0.00056438,120]
[342785610,1732140753079,-1127.77,0.00056438,120]
[342785611,1732140753088,-570.31,0.00056438,120]
[342785612,1732140753098,-500.0,0.00056438,120]
[342785613,1732140753107,-500.0,0.00056438,120]
[342785614,1732140753117,-7043.87,0.00056438,120]
[342785615,1732140753128,-580.25,0.00056438,120]
[342785616,1732140753137,-500.0,0.00056438,120]
[342785617,1732140753149,-604.62,0.00056438,120]
[342785618,1732140753160,-8863.78,0.00056438,120]
[342785619,1732140753169,-1500.0,0.00056438,120]
[342785620,1732140753179,-2040.5,0.00056438,120]
[342785621,1732140753191,-500.0,0.00056438,120]
[342785622,1732140753200,-2305.42,0.00056438,120]
[342785623,1732140753210,-500.0,0.00056438,120]
[342785624,1732140753219,-762.69,0.00056438,120]
[342785625,1732140753229,-1604.28,0.00056438,120]
[342785626,1732140753238,-713.08,0.00056438,120]
[342785627,1732140753249,-500.0,0.00056438,120]
[342785628,1732140753259,-500.0,0.00056438,120]
[342785629,1732140753268,-554.67963597,0.00056438,120]
[342785630,1732140753278,-500.0,0.00056438,120]
[342785631,1732140753287,-1101.03,0.00056438,120]
[342785632,1732140753297,-500.0,0.00056438,120]
[342785633,1732140753306,-1320.75,0.00056438,120]
[342785634,1732140753315,-500.0,0.00056438,120]
[342785635,1732140753325,-1100.57,0.00056438,120]
[342785636,1732140753335,-500.0,0.00056438,120]
[342785637,1732140753344,-500.0,0.00056438,120]
[342785638,1732140753354,-176.573386,0.00056438,120]
[342785639,1732140753363,-176.573386,0.00056438,120]
[342785640,1732140753374,-176.573386,0.00056438,120]
[342785641,1732140753383,-176.573386,0.00056438,120]
[342785642,1732140753393,-500.0,0.00056438,120]
[342785643,1732140753402,-176.573386,0.00056438,120]
[342785644,1732140753412,-5594.76,0.00056438,120]
[342785645,1732140753421,-176.573386,0.00056438,120]
[342785646,1732140753431,-500.0,0.00056438,120]
[342785647,1732140753442,-561.2,0.00056438,120]
[342785648,1732140753454,-918.38,0.00056438,120]
[342785649,1732140753463,-500.0,0.00056438,120]
[342785650,1732140753473,-3670.68,0.00056438,120]
[342785651,1732140753482,-500.0,0.00056438,120]
[342785652,1732140753492,-176.573386,0.00056438,120]
[342785653,1732140753502,-176.573386,0.00056438,120]
[342785654,1732140753512,-500.0,0.00056438,120]
[342785655,1732140753521,-176.573386,0.00056438,120]
[342785656,1732140753530,-275.844712,0.00056438,120]
[342785657,1732140753540,-176.573386,0.00056438,120]
[342785658,1732140753550,-176.573386,0.00056438,120]
[342785659,1732140753559,-176.573377,0.00056438,120]
[342785660,1732140753569,-4360.305673,0.00056438,120]
[342785661,1732140753580,-4360.305673,0.00056438,120]
[342785662,1732140753589,-4360.305673,0.00056438,120]
[342785663,1732140753599,-597.23,0.00056438,120]
[342785664,1732140753609,-150.0,0.00056586,120]
[342785665,1732140753619,-250.0,0.000566,30]
[342785666,1732140753629,-150.0,0.00056625,14]
[342785667,1732140753639,-170.818802,0.00056634,30]
[342785668,1732140753650,-500.0,0.00056712,7]
[342785669,1732140753660,-597.23,0.00056712,120]
[342785670,1732140753670,-500.0,0.00056712,120]
[342785671,1732140753680,-500.0,0.00056712,120]
[342785672,1732140753693,-500.0,0.00056712,120]
[342785673,1732140753703,-474.95918065,0.00056712,120]
[342785674,1732140753712,-500.0,0.00056712,120]
[342785675,1732140753722,-500.0,0.00056712,120]
[342785676,1732140753732,-500.0,0.00056712,120]
[342785677,1732140753742,-345.97877456,0.00056712,120]
[342785678,1732140753752,-210.928221,0.00056712,120]
[342785679,1732140753761,-260.413462,0.00056712,120]
[342785680,1732140753771,-500.0,0.00056712,120]
[342785681,1732140753780,-789.82,0.00056712,120]
[342785682,1732140753790,-907.52,0.00056712,120]
[342785683,1732140753800,-676.32,0.00056712,120]
[342785684,1732140753810,-500.0,0.00056712,120]
[342785685,1732140753820,-500.0,0.00056712,120]
[342785686,1732140753830,-690.77,0.00056712,120]
[342785687,1732140753840,-500.0,0.00056712,120]
[342785688,1732140753849,-594.58305075,0.00056712,120]
[342785689,1732140753859,-500.0,0.00056712,120]
[342785690,1732140753869,-500.0,0.00056712,120]
[342785691,1732140753878,-500.0,0.00056712,120]
[342785692,1732140753888,-500.0,0.00056712,120]
[342785693,1732140753898,-500.0,0.00056712,120]
[342785694,1732140753908,-500.0,0.00056712,120]
[342785695,1732140753918,-500.0,0.00056712,120]
[342785696,1732140753929,-500.0,0.00056712,30]
[342785697,1732140753938,-514.46622277,0.00056712,120]
[342785698,1732140753949,-500.0,0.00056712,120]
[342785699,1732140753959,-500.0,0.00056712,120]
[342785700,1732140753969,-500.0,0.00056712,120]
[342785701,1732140753978,-802.91,0.00056712,120]
[342785702,1732140753988,-1078.99,0.00056712,120]
[342785703,1732140753998,-500.0,0.00056712,120]
[342785704,1732140754008,-1196.86,0.00056712,120]
[342785705,1732140754018,-1553.66,0.00056712,120]
[342785706,1732140754028,-500.0,0.00056712,120]
[342785707,1732140754038,-500.0,0.00056712,120]
[342785708,1732140754047,-500.0,0.00056712,120]
[342785709,1732140754057,-500.0,0.00056712,120]
[342785710,1732140754067,-1468.02,0.00056712,120]
[342785711,1732140754077,-500.0,0.00056712,120]
[342785712,1732140754087,-500.0,0.00056712,120]
[342785713,1732140754096,-1204.33,0.00056712,120]
[342785714,1732140754106,-500.0,0.00056712,120]
[342785715,1732140754116,-689.54,0.00056712,120]
[342785716,1732140754126,-500.0,0.00056712,120]
[342785717,1732140754136,-500.0,0.00056712,120]
[342785718,1732140754147,-500.0,0.00056712,120]
[342785719,1732140754161,-506.68360705,0.00056712,120]
[342785720,1732140754171,-500.0,0.00056712,120]
[342785721,1732140754181,-500.0,0.00056712,120]
[342785722,1732140754192,-500.0,0.00056712,7]
[342785723,1732140754203,-3362.7,0.00056712,120]
[342785724,1732140754213,-500.0,0.00056712,120]
[342785725,1732140754223,-500.0,0.00056712,120]
[342785726,1732140754234,-500.0,0.00056712,120]
[342785727,1732140754245,-2907.27,0.00056712,120]
[342785728,1732140754255,-321.06692093,0.00056712,120]
[342785729,1732140754265,-1034.08,0.00056712,120]
[342785730,1732140754275,-500.0,0.00056712,120]
[342785731,1732140754285,-500.0,0.00056712,120]
[342785732,1732140754296,-500.0,0.00056712,120]
[342785733,1732140754306,-500.0,0.00056712,120]
[342785734,1732140754316,-500.0,0.00056712,120]
[342785735,1732140754326,-500.0,0.00056712,120]
[342785736,1732140754337,-2762.68071711,0.00056712,120]
[342785737,1732140754347,-500.0,0.00056712,120]
[342785738,1732140754356,-500.0,0.00056712,120]
[342785739,1732140754367,-1141.42,0.00056712,120]
[342785740,1732140754377,-577.45,0.00056712,120]
[342785741,1732140754387,-691.51,0.00056712,120]
[342785742,1732140754398,-500.0,0.00056712,120]
[342785743,1732140754408,-500.0,0.00056712,120]
[342785744,1732140754418,-1067.52,0.00056712,120]
[342785745,1732140754428,-500.0,0.00056712,120]
[342785746,1732140754439,-500.0,0.00056712,120]
[342785747,1732140754449,-1047.06,0.00056712,120]
[342785748,1732140754459,-500.0,0.00056712,120]
[342785749,1732140754469,-500.0,0.00056712,2]
[342785750,1732140754479,-1588.94,0.00056712,120]
[342785751,1732140754489,-500.0,0.00056712,120]
[342785752,1732140754499,-500.0,0.00056712,14]
[342785753,1732140754510,-500.0,0.00056712,120]
[342785754,1732140754519,-826.46,0.00056712,120]
[342785755,1732140754530,-558.0407305,0.00056712,120]
[342785756,1732140754540,-500.0,0.00056712,120]
[342785757,1732140754657,-883.47,0.00056712,120]
[342785758,1732140754667,-500.0,0.00056712,120]
[342785759,1732140754676,-500.0,0.00056712,120]
[342785760,1732140754686,-1125.72,0.00056712,120]
[342785761,1732140754696,-500.0,0.00056712,120]
[342785762,1732140754705,-500.0,0.00056712,120]
[342785763,1732140754715,-500.0,0.00056712,120]
[342785764,1732140754725,-1116.01,0.00056712,120]
[342785765,1732140754735,-1198.91,0.00056712,120]
[342785766,1732140754744,-500.0,0.00056712,120]
[342785767,1732140754754,-500.0,0.00056712,120]
[342785768,1732140754763,-1410.51,0.00056712,120]
[342785769,1732140754773,-500.0,0.00056712,120]
[342785770,1732140754782,-500.0,0.00056712,120]
[342785771,1732140754791,-508.72,0.00056712,120]
[342785772,1732140754804,-500.0,0.00056712,120]
[342785773,1732140754814,-500.0,0.00056712,120]
[342785774,1732140754823,-501.02,0.00056712,120]
[342785775,1732140754833,-500.0,0.00056712,120]
[342785776,1732140754842,-854.5,0.00056712,120]
[342785777,1732140754852,-500.0,0.00056712,120]
[342785778,1732140754862,-500.0,0.00056712,120]
[342785779,1732140754871,-923.86,0.00056712,120]
[342785780,1732140754880,-500.0,0.00056712,60]
[342785781,1732140754890,-1843.46,0.00056712,120]
[342785782,1732140754899,-810.6,0.00056712,120]
[342785783,1732140754909,-500.0,0.00056712,120]
[342785784,1732140754918,-909.22,0.00056712,120]
[342785785,1732140754928,-500.0,0.00056712,120]
[342785786,1732140754937,-500.0,0.00056712,120]
[342785787,1732140754947,-500.0,0.00056712,120]
[342785788,1732140754956,-533.52,0.00056712,120]
[342785789,1732140754966,-500.0,0.00056712,120]
[342785790,1732140754976,-500.0,0.00056712,120]
[342785791,1732140754985,-2415.23,0.00056712,120]
[342785792,1732140754994,-500.0,0.00056712,120]
[342785793,1732140755003,-972.8,0.00056712,120]
[342785794,1732140755013,-1624.46,0.00056712,120]
[342785795,1732140755022,-500.0,0.00056712,120]
[342785796,1732140755031,-178.78348454,0.00056712,120]
[342785797,1732140755040,-530.46,0.00056712,120]
[342785798,1732140755050,-150.0,0.00056712,120]
[342785799,1732140755060,-500.0,0.00056712,120]
[342785800,1732140755071,-730.89,0.00056712,120]
[342785801,1732140755082,-500.0,0.00056712,60]
[342785802,1732140755092,-500.0,0.00056712,120]
[342785803,1732140755102,-615.39,0.00056712,120]
[342785804,1732140755111,-500.0,0.00056712,120]
[342785805,1732140755122,-500.0,0.00056712,120]
[342785806,1732140755131,-500.0,0.00056712,120]
[342785807,1732140755140,-515.66,0.00056712,120]
[342785808,1732140755154,-500.0,0.00056712,120]
[342785809,1732140755164,-500.0,0.00056712,120]
[342785810,1732140755173,-783.6,0.00056712,120]
[342785811,1732140755182,-1852.69,0.00056712,120]
[342785812,1732140755192,-713.08,0.00056712,120]
[342785813,1732140755202,-524.36,0.00056712,120]
[342785814,1732140755211,-500.0,0.00056712,120]
[342785815,1732140755220,-500.0,0.00056712,120]
[342785816,1732140755229,-500.0,0.00056712,120]
[342785817,1732140755239,-500.0,0.00056712,120]
[342785818,1732140755248,-500.0,0.00056712,120]
[342785819,1732140755257,-729.05,0.00056712,120]
[342785820,1732140755266,-500.0,0.00056712,120]
[342785821,1732140755275,-500.0,0.00056712,120]
[342785822,1732140755284,-2435.5,0.00056712,120]
[342785823,1732140755293,-500.0,0.00056712,120]
[342785824,1732140755302,-521.8,0.00056712,120]
[342785825,1732140755311,-642.48,0.00056712,120]
[342785826,1732140755321,-849.85,0.00056712,120]
[342785827,1732140755329,-627.45,0.00056712,120]
[342785828,1732140755338,-500.0,0.00056712,120]
[342785829,1732140755347,-742.62,0.00056712,120]
[342785830,1732140755356,-500.0,0.00056712,120]
[342785831,1732140755366,-500.0,0.00056712,120]
[342785832,1732140755375,-858.26,0.00056712,120]
[342785833,1732140755384,-500.0,0.00056712,120]
[342785834,1732140755394,-503.51,0.00056712,120]
[342785835,1732140755404,-500.0,0.00056712,120]
[342785836,1732140755414,-2800.08,0.00056712,120]
[342785837,1732140755423,-500.0,0.00056712,120]
[342785838,1732140755433,-500.0,0.00056712,120]
[342785839,1732140755443,-500.0,0.00056712,120]
[342785840,1732140755453,-563.45,0.00056712,120]
[342785841,1732140755462,-500.0,0.00056712,120]
[342785842,1732140755471,-500.0,0.00056712,120]
[342785843,1732140755481,-500.0,0.00056712,120]
[342785844,1732140755490,-1104.08,0.00056712,120]
[342785845,1732140755505,-500.0,0.00056712,120]
[342785846,1732140755515,-500.0,0.00056712,120]
[342785847,1732140755524,-1222.85,0.00056712,120]
[342785848,1732140755534,-500.0,0.00056712,120]
[342785849,1732140755543,-500.0,0.00056712,120]
[342785850,1732140755553,-1021.61,0.00056712,120]
[342785851,1732140755563,-578.33,0.00056712,120]
[342785852,1732140755572,-500.0,0.00056712,120]
[342785853,1732140755582,-500.0,0.00056712,120]
[342785854,1732140755591,-1661.17,0.00056712,120]
[342785855,1732140755601,-500.0,0.00056712,120]
[342785856,1732140755610,-800.14,0.00056712,120]
[342785857,1732140755620,-500.0,0.00056712,120]
[342785858,1732140755629,-590.45295267,0.00056712,120]
[342785859,1732140755639,-1090.19,0.00056712,120]
[342785860,1732140755648,-1054.3,0.00056712,120]
[342785861,1732140755658,-500.0,0.00056712,120]
[342785862,1732140755667,-1209.25,0.00056712,120]
[342785863,1732140755677,-500.0,0.00056712,120]
[342785864,1732140755686,-1127.18,0.00056712,120]
[342785865,1732140755697,-500.0,0.00056712,120]
[342785866,1732140755706,-236.98701117,0.00056712,120]
[342785867,1732140755715,-500.0,0.00056712,120]
[342785868,1732140755725,-500.0,0.00056712,120]
[342785869,1732140755734,-1267.34,0.00056712,120]
[342785870,1732140755743,-160.14703516,0.00056712,120]
[342785871,1732140755753,-2432.38,0.00056712,7]
[342785872,1732140755763,-1560.72,0.00056712,120]
[342785873,1732140755772,-655.09,0.00056712,120]
[342785874,1732140755781,-1047.78,0.00056712,120]
[342785875,1732140755790,-500.0,0.00056712,120]
[342785876,1732140755799,-500.0,0.00056712,120]
[342785877,1732140755808,-500.0,0.00056712,120]
[342785878,1732140755818,-500.0,0.00056712,120]
[342785879,1732140755827,-1376.36,0.00056712,120]
[342785880,1732140755837,-758.47,0.00056712,120]
[342785881,1732140755846,-1218.68,0.00056712,120]
[342785882,1732140755856,-500.0,0.00056712,120]
[342785883,1732140755865,-1031.21,0.00056712,120]
[342785884,1732140755874,-746.97,0.00056712,120]
[342785885,1732140755884,-500.0,0.00056712,120]
[342785886,1732140755893,-1956.13,0.00056712,120]
[342785887,1732140755902,-859.85,0.00056712,120]
[342785888,1732140755911,-1530.02,0.00056712,120]
[342785889,1732140755920,-626.84,0.00056712,120]
[342785890,1732140755930,-925.63,0.00056712,120]
[342785891,1732140755939,-1089.2,0.00056712,120]
[342785892,1732140755948,-500.0,0.00056712,120]
[342785893,1732140755958,-746.22,0.00056712,120]
[342785894,1732140755967,-1753.04,0.00056712,120]
[342785895,1732140755976,-1615.28,0.00056712,120]
[342785896,1732140755987,-750.0,0.00056712,120]
[342785897,1732140755997,-2808.16,0.00056712,120]
[342785898,1732140756007,-500.0,0.00056712,120]
[342785899,1732140756016,-628.55,0.00056712,120]
[342785900,1732140756026,-2720.22,0.00056712,120]
[342785901,1732140756035,-1040.43,0.00056712,120]
[342785902,1732140756045,-679.38,0.00056712,120]
[342785903,1732140756054,-500.0,0.00056712,120]
[342785904,1732140756064,-1140.69,0.00056712,120]
[342785905,1732140756073,-579.85,0.00056712,120]
[342785906,1732140756083,-1233.54,0.00056712,120]
[342785907,1732140756092,-560.33,0.00056712,120]
[342785908,1732140756102,-1241.7,0.00056712,120]
[342785909,1732140756111,-673.6,0.00056712,120]
[342785910,1732140756121,-1595.79,0.00056712,120]
[342785911,1732140756130,-500.0,0.00056712,120]
[342785912,1732140756140,-690.2,0.00056712,120]
[342785913,1732140756151,-500.0,0.00056712,120]
[342785914,1732140756164,-614.35,0.00056712,120]
[342785915,1732140756176,-500.0,0.00056712,120]